bitfinex-derivatives/quotes_ETHF0:USTF0_20250104
["timestamp","ask_amount","ask_price","bid_price","bid_amount"]
[1736008187311,0.2761,3622.4,3622.1,2.224846]
[1736008187512,0.2761,3622.4,3622.3,0.2761]
[1736008187807,0.27611,3622.3,3622.2,0.27611]
[1736008190887,3.2078,3622.5,3621.8,5.432646]
[1736008190888,3.2500116,3622.4,3621.8,5.432646]
[1736008191090,0.27611,3622.2,3622.1,0.27612]
[1736008191293,0.27611,3622.3,3622.2,0.27611]
[1736008192382,3.94041618,3622.3,3622.2,0.27611]
[1736008193484,3.66430618,3622.3,3622.2,0.27611]
[1736008193781,3.5261116,3622.4,3622.2,0.27611]
[1736008193981,3.2500116,3622.4,3621.8,5.432646]
[1736008194178,3.5261116,3622.4,3622.3,0.2761]
[1736008194381,3.2500116,3622.4,3621.8,5.432646]
[1736008194583,0.2761,3622.3,3622.2,0.27611]
[1736008195285,3.2500116,3622.4,3621.8,5.432646]
[1736008195286,3.5261116,3622.4,3622.3,0.2761]
[1736008195487,3.2500116,3622.4,3621.8,5.432646]
[1736008195791,0.2761,3622.3,3622.2,0.27611]
[1736008195989,3.2500116,3622.4,3622.2,0.27611]
[1736008196191,3.2500116,3622.4,3622.3,0.2761]
[1736008196793,3.2500116,3622.4,3622.1,2.224846]
[1736008196994,0.27612,3622.2,3621.8,5.432646]
[1736008197496,3.2500116,3622.4,3621.8,5.432646]
[1736008197497,0.27613,3622.0,3621.8,5.432646]
[1736008197688,0.27613,3622.0,3621.9,0.27613]
[1736008200390,0.27613,3621.9,3621.8,3.2078]
[1736008200591,2.0414,3621.9,3621.5,4.29104968]
[1736008200791,0.27616,3621.6,3621.5,4.29104968]
[1736008201591,0.27615,3621.7,3621.6,0.27615]
[1736008201789,5.2877116,3622.1,3621.5,6.51589568]
[1736008201995,5.2877116,3622.1,3621.3,10.331425]
[1736008201996,4.28258778,3621.8,3621.7,3.48395]
[1736008203393,3.25336298,3622.1,3621.7,5.432646]
[1736008203692,3.25336298,3622.1,3622.0,2.500976]
[1736008204798,6.46116298,3622.6,3622.5,0.27609]
[1736008205095,6.46116298,3622.6,3622.1,3.2078]
[1736008205296,6.46116298,3622.6,3622.0,6.51589568]
[1736008205297,0.2761,3622.4,3622.3,0.2761]
[1736008205497,0.27611,3622.3,3622.2,0.27611]
[1736008205697,0.2761,3622.4,3622.3,0.2761]
[1736008205895,0.41428657,3622.4,3622.0,0.27612]
[1736008206096,0.27612,3622.2,3622.1,0.27612]
[1736008206296,0.27614,3621.9,3621.8,0.27614]
[1736008206601,0.27614,3621.9,3621.7,7.49884968]
[1736008206602,0.9104,3622.1,3621.7,7.49884968]
[1736008206799,0.27614,3621.8,3621.7,4.29104968]
[1736008207101,0.27617,3621.5,3621.4,0.27617]
[1736008207298,0.27617,3621.5,3621.2,4.29104968]
[1736008207299,3.66883599,3621.9,3621.2,4.29104968]
[1736008207601,0.9605,3621.4,3621.3,0.27618]
[1736008208097,2.8285,3621.4,3621.3,0.27618]
[1736008210394,3.25454942,3621.5,3621.2,2.224846]
[1736008210598,3.25454942,3621.5,3621.4,0.27617]
[1736008211301,0.27617,3621.5,3621.4,0.27617]
[1736008211502,0.27618,3621.4,3621.3,0.27618]
[1736008212293,0.27617,3621.5,3621.0,7.49884968]
[1736008212697,0.41438974,3621.4,3621.0,3.2078]
[1736008212894,0.8943,3621.3,3621.0,3.2078]
[1736008213099,0.8943,3621.3,3621.2,0.27619]
[1736008213699,0.8943,3621.3,3621.0,3.2078]
[1736008213700,2.0323,3621.3,3621.0,3.2078]
[1736008214002,2.0323,3621.3,3621.2,0.27619]
[1736008214199,5.28638167,3621.3,3621.2,0.27619]
[1736008214397,5.28638167,3621.3,3621.0,3.2078]
[1736008214593,5.56256167,3621.3,3621.2,0.27619]
[1736008214802,5.28638167,3621.3,3621.2,0.27619]
[1736008215993,2.44671411,3621.3,3621.2,0.27619]
[1736008216610,2.72289411,3621.3,3621.1,0.27619]
[1736008216901,2.44671411,3621.3,3621.2,0.27619]
[1736008217101,2.72289411,3621.3,3621.2,0.27619]
[1736008217299,2.0323,3621.3,3621.2,0.27619]
[1736008217499,2.0323,3621.3,3620.7,0.27623]
[1736008217500,0.27619,3621.2,3620.7,0.27623]
[1736008217801,0.27619,3621.2,3620.6,3.2078]
[1736008217802,0.9142,3621.1,3620.6,3.2078]
[1736008218401,0.9142,3621.1,3621.0,0.2762]
[1736008220100,0.9142,3621.1,3620.3,0.31683571]
[1736008220299,0.27621,3620.9,3620.8,0.27622]
[1736008220695,0.27621,3620.9,3620.2,6.123296]
[1736008220696,2.224846,3620.9,3620.2,3.2078]
[1736008221202,0.27622,3620.8,3620.6,0.27623]
[1736008221805,0.27622,3620.8,3620.7,0.27622]
[1736008222003,3.94256948,3620.9,3620.7,0.27622]
[1736008222307,0.27622,3620.8,3620.7,0.27622]
[1736008222904,3.94256948,3620.9,3620.7,0.27622]
[1736008223099,0.27622,3620.8,3620.7,0.27622]
[1736008223703,6.45967124,3621.0,3619.7,1.6649]
[1736008223704,2.224846,3620.9,3619.7,7.097546]
[1736008224005,0.27627,3620.2,3620.0,0.27628]
[1736008224207,2.9918,3620.1,3620.0,0.27628]
[1736008227410,3.26807,3620.1,3620.0,0.27628]
[1736008228212,8.424446,3620.1,3619.3,3.2078]
[1736008228407,2.501146,3619.8,3619.3,3.2078]
[1736008228607,8.424446,3620.1,3619.3,3.89863]
[1736008228817,8.424446,3620.1,3619.4,2.224846]
[1736008228818,1.8538,3620.1,3619.4,2.224846]
[1736008229008,0.8887,3620.1,3620.0,0.27628]
[1736008230213,1.138,3620.2,3620.1,0.27627]
[1736008230414,5.1426,3620.5,3620.0,2.224846]
[1736008230610,5.39958156,3621.0,3620.3,2.224846]
[1736008230611,3.25187124,3620.8,3620.3,2.224846]
[1736008230918,3.25187124,3620.8,3620.7,0.27623]
[1736008231806,0.9725,3620.9,3620.4,1.8201]
[1736008232012,0.27623,3620.7,3620.1,4.0263]
[1736008232313,0.9725,3620.9,3619.7,0.69076]
[1736008232314,2.224846,3620.5,3619.7,3.2078]
[1736008232508,0.9615,3620.4,3619.7,3.2078]
[1736008232706,0.27629,3620.0,3619.7,3.2078]
[1736008232911,0.9874,3619.9,3619.8,0.27629]
[1736008233920,1.26369,3619.9,3619.8,0.27629]
[1736008234115,0.27629,3619.8,3619.7,3.4841]
[1736008234517,0.27629,3619.8,3619.7,3.2078]
[1736008235025,0.27629,3619.8,3619.7,3.4841]
[1736008235519,0.9874,3619.9,3619.7,3.4841]
[1736008235815,0.27629,3619.8,3619.7,3.4841]
[1736008236016,0.27629,3619.8,3619.7,3.2078]
[1736008236913,0.27629,3619.8,3619.7,3.4841]
[1736008237618,1.26369,3619.9,3619.7,3.4841]
[1736008237815,1.26369,3619.9,3619.7,3.2078]
[1736008237816,0.9874,3619.9,3619.7,3.2078]
[1736008238016,1.26369,3619.9,3619.7,3.4841]
[1736008238219,0.27629,3619.8,3619.7,3.2078]
[1736008238518,0.27629,3619.8,3619.7,3.4841]
[1736008238818,0.9874,3619.9,3619.4,0.27632]
[1736008238819,0.27632,3619.5,3619.4,0.27632]
[1736008239025,1.138,3619.5,3619.1,3.2078]
[1736008239313,0.27634,3619.3,3619.1,0.27635]
[1736008239521,0.27635,3619.1,3618.9,0.27636]
[1736008239820,1.20704,3619.2,3619.0,0.27636]
[1736008240013,0.27636,3619.0,3618.8,0.27637]
[1736008240209,0.9307,3619.2,3618.6,3.2078]
[1736008240610,0.27635,3619.1,3618.8,0.27636]
[1736008240817,0.9307,3619.2,3618.6,3.2078]
[1736008241018,0.9307,3619.2,3618.6,5.432646]
[1736008241219,1.138,3619.2,3619.1,0.27635]
[1736008242220,0.9029,3619.6,3619.0,4.0262]
[1736008242422,0.9029,3619.6,3619.5,0.27632]
[1736008242622,2.0409,3619.6,3619.5,0.27632]
[1736008243025,2.0409,3619.6,3619.0,4.0262]
[1736008243226,2.31721,3619.6,3619.4,0.27632]
[1736008243414,2.0409,3619.6,3619.5,0.27632]
[1736008246427,2.9331,3619.6,3619.5,0.27632]
[1736008246623,3.20941,3619.6,3619.4,0.27632]
[1736008246827,2.9331,3619.6,3619.5,0.27632]
[1736008247227,6.45967124,3620.3,3619.4,5.432646]
[1736008247524,6.45967124,3620.3,3620.2,0.27626]
[1736008247722,3.2078,3620.3,3620.2,0.27626]
[1736008248616,3.25187124,3620.4,3620.3,0.27626]
[1736008248829,3.25187124,3620.4,3620.3,5.708906]
[1736008249025,1.24e-06,3620.4,3620.3,10.708906]
[1736008249230,1.24e-06,3621.0,3620.9,0.27621]
[1736008249432,1.24e-06,3621.0,3620.9,3.48401]
[1736008250130,3.99728902,3621.2,3621.1,0.2762]
[1736008250319,3.99728902,3621.2,3621.1,2.501046]
[1736008250725,0.27613,3622.0,3621.7,0.27614]
[1736008251024,1.138,3622.1,3621.1,2.224846]
[1736008251025,0.27615,3621.7,3621.4,0.27617]
[1736008251226,1.138,3622.1,3621.3,3.2078]
[1736008251535,0.27613,3622.0,3621.8,0.27614]
[1736008251824,0.27613,3622.0,3621.7,0.27615]
[1736008252024,0.27613,3622.0,3621.3,3.2078]
[1736008252025,0.27614,3621.8,3621.3,3.2078]
[1736008252228,0.27614,3621.8,3621.6,0.27615]
[1736008252425,0.27614,3621.9,3621.6,0.27615]
[1736008252624,1.138,3622.3,3621.8,3.2078]
[1736008252829,3.2078,3622.8,3622.0,2.224846]
[1736008253021,4.62187,3622.8,3622.4,0.27609]
[1736008253226,4.62187,3622.8,3622.5,0.27609]
[1736008253726,4.62187,3622.8,3622.4,0.27609]
[1736008253927,4.3458,3622.8,3622.0,2.224846]
[1736008254129,5.39958156,3622.9,3622.6,0.27608]
[1736008254322,6.53758156,3622.9,3622.6,0.27608]
[1736008254722,0.27607,3622.8,3622.1,0.27612]
[1736008255034,0.27607,3622.8,3621.8,3.89815]
[1736008255035,0.27609,3622.5,3622.2,0.27611]
[1736008255331,3.2078,3622.7,3621.8,3.2078]
[1736008255332,0.2761,3622.4,3621.8,3.2078]
[1736008255533,0.9003,3622.4,3622.1,0.27611]
[1736008255732,0.9003,3622.4,3621.8,3.2078]
[1736008256131,0.9003,3622.4,3622.1,0.27611]
[1736008256534,1.1764,3622.4,3622.0,0.27612]
[1736008256828,0.9003,3622.4,3622.0,0.27612]
[1736008257131,0.9253,3622.3,3621.8,3.2078]
[1736008257435,1.20141,3622.3,3622.0,0.27613]
[1736008257626,0.9253,3622.3,3622.0,0.27612]
[1736008257832,1.20141,3622.3,3622.0,0.27612]
[1736008258633,1.20141,3622.3,3621.9,0.27613]
[1736008259028,4.40921,3622.3,3621.9,0.27613]
[1736008259338,6.357946,3622.3,3621.9,0.27613]
[1736008259636,0.27612,3622.2,3621.8,0.27614]
[1736008259934,0.27615,3621.8,3621.4,0.27617]
[1736008260329,3.2078,3621.5,3620.7,3.2078]
[1736008260529,0.27619,3621.2,3620.9,0.27621]
[1736008260735,1.137,3621.2,3621.1,0.2762]
[1736008261534,1.137,3621.2,3621.0,0.2762]
[1736008261833,1.137,3621.2,3621.1,0.2762]
[1736008262038,1.137,3621.2,3620.7,3.2078]
[1736008262229,1.137,3621.2,3621.0,0.2762]
[1736008262730,0.2762,3621.1,3620.7,3.2078]
[1736008262932,2.224846,3620.8,3620.3,3.2078]
[1736008263131,0.27625,3620.4,3620.2,0.27626]
[1736008263335,2.224846,3620.5,3619.7,7.49884968]
[1736008263538,2.224846,3620.5,3619.7,4.56734968]
[1736008263539,0.27628,3620.0,3619.7,4.56734968]
[1736008263931,0.27628,3620.0,3619.7,0.2763]
[1736008264133,0.27628,3620.1,3619.3,2.224846]
[1736008264439,0.9046,3620.2,3619.3,2.224846]
[1736008264440,0.9046,3620.2,3619.5,3.2078]
[1736008264639,0.9046,3620.2,3620.1,0.27627]
[1736008265242,1.137,3620.4,3619.9,5.432646]
[1736008265538,1.137,3620.4,3619.7,0.2763]
[1736008265539,1.41325,3620.4,3619.7,0.2763]
[1736008265839,1.137,3620.4,3620.3,0.27626]
[1736008266042,1.137,3620.4,3620.1,0.27627]
[1736008266538,0.27626,3620.3,3620.0,0.27627]
[1736008268141,1.137,3620.4,3619.6,2.224846]
[1736008268342,0.27627,3620.2,3619.9,0.27628]
[1736008268545,0.9552,3620.3,3619.7,0.2763]
[1736008268741,4.163,3620.3,3619.4,3.2078]
[1736008269044,0.27628,3620.1,3619.8,0.27629]
[1736008269244,0.27627,3620.2,3619.9,0.27628]
[1736008269438,0.9552,3620.3,3619.9,0.27628]
[1736008269641,0.27626,3620.2,3619.9,0.27628]
[1736008269946,0.9552,3620.3,3619.4,3.2078]
[1736008270242,0.27627,3620.2,3619.9,0.27628]
[1736008270741,0.9552,3620.3,3620.2,0.27626]
[1736008272445,0.9552,3620.3,3620.1,0.27627]
[1736008272743,0.27627,3620.2,3620.0,0.27628]
[1736008273148,0.27626,3620.2,3619.9,0.27629]
[1736008273347,3.2078,3620.1,3619.5,3.2078]
[1736008273544,3.2078,3620.1,3619.7,0.2763]
[1736008273745,0.2763,3619.7,3619.1,0.27635]
[1736008273951,1.137,3619.7,3619.0,3.2078]
[1736008274252,1.137,3619.7,3618.9,2.224846]
[1736008274253,1.8652,3619.6,3618.9,2.224846]
[1736008274441,1.24292,3619.5,3618.9,2.224846]
[1736008274647,1.24292,3619.5,3619.3,0.27633]
[1736008274845,0.9666,3619.5,3619.4,0.27633]
[1736008276445,0.9242,3620.1,3619.9,0.27628]
[1736008276646,1.138,3619.9,3619.8,0.27629]
[1736008277944,1.138,3619.9,3619.4,3.2078]
[1736008278144,0.27628,3620.0,3619.4,3.2078]
[1736008278345,0.27628,3620.0,3619.8,0.27629]
[1736008278547,3.931,3620.1,3619.8,0.27629]
[1736008278743,3.931,3620.1,3619.9,0.27628]
[1736008278744,4.20728,3620.1,3619.9,0.27628]
[1736008279144,3.931,3620.1,3619.4,3.2078]
[1736008279447,0.27628,3620.0,3619.4,3.2078]
[1736008279749,0.27632,3619.5,3619.4,3.2078]
[1736008280256,0.27631,3619.6,3619.4,3.48413]
[1736008280449,0.27632,3619.5,3619.4,3.2078]
[1736008280649,0.897,3619.5,3619.4,3.48413]
[1736008281056,1.17332,3619.5,3619.4,3.2078]
[1736008283754,0.897,3619.5,3619.0,3.2078]
[1736008283951,0.27636,3619.0,3618.8,0.27637]
[1736008284157,1.8561,3618.9,3618.8,0.27637]
[1736008286957,1.8561,3618.9,3618.5,0.27639]
[1736008287148,0.27638,3618.7,3618.6,0.27638]
[1736008287950,0.27639,3618.6,3618.1,3.2078]
[1736008288153,0.27641,3618.4,3618.2,0.27641]
[1736008288455,0.27641,3618.3,3618.1,3.48422]
[1736008288760,0.8859,3618.3,3618.1,3.2078]
[1736008288961,0.8859,3618.3,3618.2,0.27642]
[1736008290161,0.8859,3618.3,3618.1,3.2078]
[1736008290351,0.8859,3618.3,3618.2,0.27642]
[1736008290561,1.16231,3618.3,3618.1,3.2078]
[1736008290753,1.16231,3618.3,3618.1,3.48422]
[1736008291258,1.137,3618.2,3617.4,7.76138839]
[1736008291462,0.27643,3618.1,3617.9,0.27644]
[1736008291662,1.20423,3618.1,3617.9,0.27644]
[1736008291862,1.20423,3618.1,3617.4,5.53654239]
[1736008291863,2.0648,3618.1,3618.0,0.27643]
[1736008292865,2.34122,3618.1,3618.0,0.27643]
[1736008293066,2.0648,3618.1,3618.0,0.27643]
[1736008293363,2.0648,3618.1,3617.4,3.2078]
[1736008293552,0.27643,3618.0,3617.9,0.27644]
[1736008294460,2.0648,3618.1,3617.4,3.2078]
[1736008294667,0.27643,3618.0,3617.9,0.27644]
[1736008294963,2.34123,3618.1,3617.9,0.27644]
[1736008295561,0.9278,3618.1,3618.0,0.27643]
[1736008295872,1.138,3618.3,3618.2,0.27642]
[1736008300765,0.9807,3618.5,3618.0,3.2078]
[1736008300971,0.9807,3618.5,3618.4,0.2764]
[1736008306667,1.25709,3618.5,3618.4,0.2764]
[1736008306979,1.2571,3618.5,3618.4,0.2764]
[1736008307275,0.2764,3618.4,3618.3,0.27641]
[1736008307479,1.25709,3618.5,3618.4,0.2764]
[1736008308170,1.25709,3618.5,3617.6,0.69116]
[1736008308171,4.1885,3618.5,3617.6,3.2078]
[1736008308366,0.27642,3618.2,3617.6,3.2078]
[1736008308565,0.27641,3618.3,3618.2,0.27642]
[1736008308874,0.27642,3618.2,3618.1,0.27642]
[1736008309073,4.1885,3618.5,3618.0,0.27643]
[1736008309074,0.2764,3618.4,3618.0,0.27643]
[1736008309369,4.1885,3618.5,3618.0,0.27643]
[1736008309575,0.27642,3618.1,3618.0,0.27643]
[1736008310267,2.224846,3618.3,3617.6,3.2078]
[1736008310470,2.224846,3618.0,3617.6,3.2078]
[1736008310670,0.27646,3617.7,3617.6,3.48426]
[1736008310870,1.88664,3617.9,3617.8,0.27645]
[1736008311670,1.6102,3617.9,3617.8,0.27645]
[1736008312472,0.27649,3617.2,3617.1,0.27649]
[1736008312672,1.138,3617.3,3617.2,0.27649]
[1736008312973,1.41449,3617.3,3616.7,4.29191399]
[1736008313170,1.5712,3617.2,3617.1,0.2765]
[1736008313572,1.5712,3617.2,3616.7,4.29191399]
[1736008313768,0.27651,3617.1,3616.7,4.29191399]
[1736008314063,1.8477,3617.2,3617.0,0.2765]
[1736008314266,1.8477,3617.2,3616.7,4.29191399]
[1736008314267,9.15845066,3617.2,3616.4,4.29191399]
[1736008314468,0.27653,3616.8,3616.6,0.27653]
[1736008315169,9.15845066,3617.2,3616.4,4.29191399]
[1736008315374,0.27652,3617.0,3616.7,0.27653]
[1736008315569,9.15845066,3617.2,3616.8,0.27652]
[1736008315877,0.27651,3617.0,3616.7,0.27653]
[1736008316177,2.15460466,3616.8,3616.7,0.27653]
[1736008317378,2.15460466,3617.0,3616.9,0.27652]
[1736008317877,2.15460466,3617.0,3616.9,2.501366]
[1736008317878,3.29260466,3617.0,3616.9,2.501366]
[1736008318678,2.15460466,3617.0,3616.9,2.501366]
[1736008318877,1.138,3617.3,3617.2,0.27649]
[1736008319073,1.138,3617.3,3617.2,2.501336]
[1736008321386,1.138,3617.3,3616.4,3.2078]
[1736008321593,0.7708,3617.2,3617.1,0.2765]
[1736008322677,1.138,3617.3,3616.9,2.224846]
[1736008322885,1.138,3617.3,3617.2,2.501336]
[1736008323075,1.138,3617.3,3617.2,5.709136]
[1736008323380,2.15460466,3617.7,3617.6,0.27646]
[1736008324681,3.2078,3617.9,3617.8,0.27645]
[1736008325182,2.97630466,3618.2,3617.6,3.2078]
[1736008325480,4.11330466,3618.2,3618.1,0.27642]
[1736008326878,2.97630466,3618.2,3618.1,0.27642]
[1736008327084,2.15460466,3618.2,3618.1,0.27642]
[1736008327283,0.7754,3618.3,3618.2,0.27642]
[1736008327787,3.24603408,3618.5,3618.4,0.2764]
[1736008327981,3.24603408,3618.5,3618.4,3.4842]
[1736008328182,3.24603408,3618.5,3618.4,5.709046]
[1736008328481,2.67567408,3618.5,3618.4,5.709046]
[1736008328678,2.16466637,3618.7,3618.4,5.432646]
[1736008328878,2.16466637,3618.7,3618.6,2.501236]
[1736008330484,0.7703,3619.2,3618.6,2.224846]
[1736008330685,0.7703,3619.2,3619.1,0.27635]
[1736008331484,0.7703,3619.2,3618.5,4.29191399]
[1736008331684,0.27638,3618.7,3618.5,4.56830399]
[1736008332084,41.6155,3618.6,3618.5,0.27639]
[1736008332585,0.8155,3618.6,3618.5,0.27639]
[1736008333289,0.8155,3618.6,3618.3,4.29191399]
[1736008333481,0.8058,3618.5,3618.4,0.2764]
[1736008333683,0.8058,3618.5,3617.8,7.49971399]
[1736008333882,2.501256,3618.3,3617.8,7.49971399]
[1736008334185,2.501286,3618.0,3617.8,7.77615399]
[1736008334500,2.21244,3617.9,3617.8,4.29191399]
[1736008334881,2.21244,3617.9,3617.8,3.05331399]
[1736008335079,2.21244,3617.9,3617.6,0.27646]
[1736008335281,1.936,3617.9,3617.1,3.2078]
[1736008335486,1.936,3617.9,3617.8,0.27645]
[1736008335800,1.936,3617.9,3617.1,4.0256]
[1736008336088,0.27645,3617.8,3617.6,0.27646]
[1736008336299,0.7676,3617.7,3617.6,0.27646]
[1736008336489,1.5725,3617.7,3617.6,0.27646]
[1736008336889,1.84896,3617.7,3617.1,3.2078]
[1736008337092,1.5725,3617.7,3617.1,3.2078]
[1736008337288,1.5725,3617.7,3617.5,0.27646]
[1736008337688,2.16466637,3617.6,3617.5,0.27647]
[1736008338785,2.16466637,3617.6,3617.5,3.48427]
[1736008339191,2.16466637,3617.6,3617.5,0.27647]
[1736008339389,2.93226637,3617.7,3617.6,0.27646]
[1736008339602,2.93226637,3617.7,3617.1,3.2078]
[1736008339889,0.27647,3617.6,3617.4,0.27647]
[1736008340198,0.27648,3617.5,3617.2,0.27649]
[1736008340397,1.06248,3617.5,3617.2,0.27649]
[1736008340592,0.786,3617.5,3617.3,0.27648]
[1736008340796,1.06247,3617.5,3617.1,3.2078]
[1736008341095,1.06247,3617.5,3617.3,0.27648]
[1736008341291,0.786,3617.5,3617.1,3.2078]
[1736008341895,1.06247,3617.5,3617.3,0.27648]
[1736008342290,1.06247,3617.5,3617.4,0.00231499]
[1736008342596,0.786,3617.5,3617.4,0.27879499]
[1736008343800,1.923,3617.5,3617.4,0.27879499]
[1736008344296,1.923,3617.5,3617.4,0.00231499]
[1736008344798,1.923,3617.5,3617.4,0.27879499]
[1736008345999,1.923,3617.5,3617.4,2.50364099]
[1736008346908,0.786,3617.5,3617.4,2.50364099]
[1736008347195,1.137,3617.6,3617.5,0.27647]
[1736008347403,0.799,3617.9,3617.8,0.27645]
[1736008347595,2.6478,3618.2,3618.1,0.27642]
[1736008347797,2.6478,3618.2,3618.1,2.501266]
[1736008347997,4.30920932,3618.4,3618.1,2.224846]
[1736008348198,4.30920932,3618.4,3618.3,2.501256]
[1736008348897,5.44620932,3619.2,3618.3,2.501256]
[1736008349200,5.44620932,3619.2,3619.1,0.27635]
[1736008350291,1.137,3619.2,3619.1,0.27635]
[1736008350490,3.2078,3619.3,3618.6,3.2078]
[1736008350697,4.3448,3619.3,3619.2,0.27634]
[1736008351196,5.1698,3619.3,3619.2,0.27634]
[1736008352503,0.825,3619.3,3619.2,0.27634]
[1736008352698,0.7669,3619.4,3619.3,0.27633]
[1736008355701,2.16277154,3619.5,3619.4,0.27633]
[1736008355999,2.16277154,3619.5,3619.4,2.501176]
[1736008356201,2.16277154,3619.5,3619.4,10.708976]
[1736008356202,1.52859154,3619.5,3619.4,10.708976]
[1736008356399,1.5935,3620.4,3619.4,10.432646]
[1736008356599,0.7978,3620.4,3620.3,0.27626]
[1736008357002,6.24190932,3620.9,3620.2,2.224846]
[1736008357405,6.24190932,3620.9,3620.8,0.27622]
[1736008357804,5.10490932,3620.9,3620.8,0.27622]
[1736008358407,0.7957,3620.9,3620.8,0.27622]
[1736008359210,0.7957,3620.9,3620.4,3.2078]
[1736008359710,0.7957,3620.9,3620.8,0.27622]
[1736008360712,0.7957,3620.9,3620.4,3.2078]
[1736008360911,0.27623,3620.7,3620.3,0.27625]
[1736008361114,0.27626,3620.4,3620.0,0.27627]
[1736008361408,4.3448,3620.3,3619.5,3.2078]
[1736008361612,0.2763,3619.8,3619.5,3.48411]
[1736008361818,40.8,3619.7,3619.6,0.27631]
[1736008362021,3.2078,3619.9,3619.4,0.27632]
[1736008362213,0.27632,3619.5,3619.2,0.27634]
[1736008362416,0.27633,3619.4,3619.1,0.27634]
[1736008362620,0.27633,3619.4,3618.9,6.43787098]
[1736008362821,1.41232,3619.5,3618.7,2.224846]
[1736008363017,1.41232,3619.5,3619.2,0.27633]
[1736008363214,0.27633,3619.4,3619.1,0.27634]
[1736008363411,3.360846,3619.5,3619.3,0.27633]
[1736008363412,3.637166,3619.5,3619.3,0.27633]
[1736008363720,0.27633,3619.4,3618.6,3.9539]
[1736008363919,0.27633,3619.4,3619.2,0.27634]
[1736008364820,3.637166,3619.5,3619.2,0.27634]
[1736008365624,3.360846,3619.5,3618.6,3.9539]
[1736008365822,3.360846,3619.5,3618.9,0.27636]
[1736008366020,0.27636,3619.1,3618.7,0.27638]
[1736008366225,0.27636,3619.0,3618.7,0.27638]
[1736008367920,0.27638,3618.7,3618.6,3.2078]
[1736008368120,0.27639,3618.6,3618.4,0.2764]
[1736008368325,0.2764,3618.5,3618.3,0.27641]
[1736008368526,1.5159,3618.6,3618.3,0.27641]
[1736008368721,1.79229,3618.6,3618.3,0.27641]
[1736008369025,1.5159,3618.6,3617.9,3.9816]
[1736008369220,0.27641,3618.3,3618.0,0.27643]
[1736008369422,3.740746,3618.6,3618.1,0.27642]
[1736008369726,0.27642,3618.2,3618.0,0.27643]
[1736008370320,0.27641,3618.3,3618.0,0.27643]
[1736008370630,0.7921,3618.2,3618.0,0.27643]
[1736008371224,0.7921,3618.2,3618.1,0.27642]
[1736008371526,4.017136,3618.6,3618.3,0.2764]
[1736008371727,4.809236,3618.6,3618.3,0.2764]
[1736008371927,4.809236,3618.6,3618.1,0.27642]
[1736008371928,0.2764,3618.4,3618.1,0.27642]
[1736008372124,4.532846,3618.6,3617.9,3.2078]
[1736008372328,0.2764,3618.5,3618.2,0.27641]
[1736008372516,0.2764,3618.4,3618.2,0.27641]
[1736008373120,0.2764,3618.4,3617.9,3.2078]
[1736008373627,4.532846,3618.6,3617.9,3.2078]
[1736008373833,2.224846,3618.3,3617.9,3.2078]
[1736008374126,0.27643,3618.1,3617.9,3.2078]
[1736008374520,2.224846,3618.3,3617.9,3.2078]
[1736008374922,2.501256,3618.3,3618.0,0.27643]
[1736008376130,4.532846,3618.6,3617.5,3.2078]
[1736008376426,4.809236,3618.6,3618.3,0.27641]
[1736008377325,4.809236,3618.6,3618.3,0.2764]
[1736008377525,1.137,3618.5,3617.7,0.69115]
[1736008377923,1.137,3618.5,3618.3,0.2764]
[1736008378325,1.137,3618.5,3617.9,3.2078]
[1736008378530,0.2764,3618.4,3618.1,0.27642]
[1736008378729,1.137,3618.5,3617.9,3.2078]
[1736008378932,1.137,3618.5,3618.2,0.27641]
[1736008379132,0.27641,3618.4,3618.2,0.27641]
[1736008380231,0.27641,3618.4,3617.9,3.2078]
[1736008380424,1.137,3618.5,3617.9,0.27644]
[1736008380425,0.27643,3618.1,3617.9,0.27644]
[1736008380625,0.27642,3618.2,3618.0,0.27643]
[1736008380827,0.27641,3618.4,3617.6,0.69116]
[1736008381023,0.27641,3618.4,3618.2,0.27641]
[1736008381429,1.137,3618.5,3617.6,0.69116]
[1736008381623,0.27641,3618.3,3618.0,0.27643]
[1736008381821,0.27641,3618.3,3618.1,0.27642]
[1736008382222,0.27641,3618.4,3617.5,2.916026]
[1736008382831,0.27641,3618.4,3618.2,0.27641]
[1736008383035,0.27641,3618.3,3618.2,0.27641]
[1736008383625,1.137,3618.5,3617.5,2.916026]
[1736008383829,1.137,3618.5,3618.4,0.2764]
[1736008384135,3.2078,3618.7,3618.2,3.2078]
[1736008384327,3.2078,3618.7,3618.6,0.27639]
[1736008386225,1.41233,3619.3,3618.6,3.48419]
[1736008386433,1.41233,3619.3,3619.2,0.27634]
[1736008386934,0.27634,3619.2,3619.1,0.27634]
[1736008387130,1.136,3619.3,3619.2,0.27634]
[1736008387131,1.41233,3619.3,3619.2,0.27634]
[1736008388028,1.136,3619.3,3619.2,0.27634]
[1736008388228,2.3316,3619.4,3618.6,3.48419]
[1736008388229,1.5737,3619.4,3619.0,3.2078]
[1736008388429,1.136,3619.5,3619.3,0.27633]
[1736008388635,1.136,3619.5,3619.4,0.27633]
[1736008388830,3.2078,3619.8,3619.7,0.2763]
[1736008391934,3.48409,3619.8,3619.7,0.2763]
[1736008392234,1.136,3620.0,3619.7,0.2763]
[1736008392235,0.27629,3619.9,3619.7,0.2763]
[1736008392424,1.136,3620.0,3619.1,3.002946]
[1736008392627,2.224846,3619.8,3619.1,0.7781]
[1736008392928,2.224846,3619.5,3618.6,3.2078]
[1736008393123,0.27635,3619.2,3618.6,3.2078]